fUSD/lending_fUSD_20240429
["ID","MTS","AMOUNT","RATE_DAILY","PERIOD"]
[324902417,1714404648649,-500.0,0.0001232,2]
[324902420,1714404648658,-1555.37,0.0001232,2]
[324902422,1714404648667,-529.29,0.0001232,2]
[324902424,1714404648676,-500.0,0.0001232,2]
[324902425,1714404648686,-500.0,0.0001232,2]
[324902428,1714404648696,-612.31,0.0001232,2]
[324902430,1714404648705,-800.38,0.0001232,2]
[324902432,1714404648714,-500.0,0.0001232,2]
[324902434,1714404648723,-967.79,0.0001232,2]
[324902436,1714404648732,-500.0,0.0001232,2]
[324902438,1714404648741,-500.0,0.0001232,2]
[324902439,1714404648751,-500.0,0.0001232,2]
[324902442,1714404648760,-747.29,0.0001232,2]
[324902444,1714404648770,-500.0,0.0001232,2]
[324902446,1714404648779,-500.0,0.0001232,2]
[324902447,1714404648789,-500.0,0.0001232,2]
[324902450,1714404648799,-500.0,0.0001232,2]
[324902452,1714404648809,-1176.39,0.0001232,2]
[324902453,1714404648818,-1328.31,0.0001232,2]
[324902455,1714404648827,-500.0,0.0001232,2]
[324902458,1714404648837,-639.29,0.0001232,2]
[324902472,1714404649020,-500.0,0.0001232,2]
[324902473,1714404649033,-500.0,0.0001232,2]
[324902474,1714404649043,-500.0,0.0001232,2]
[324902475,1714404649053,-1146.78,0.0001232,2]
[324902476,1714404649063,-500.0,0.0001232,2]
[324902478,1714404649076,-500.0,0.0001232,2]
[324902480,1714404649085,-500.0,0.0001232,2]
[324902482,1714404649095,-500.0,0.0001232,2]
[324902483,1714404649106,-500.0,0.0001232,2]
[324902485,1714404649115,-649.31,0.0001232,2]
[324902487,1714404649125,-875.81,0.0001232,2]
[324902490,1714404649134,-905.57,0.0001232,2]
[324902492,1714404649144,-500.0,0.0001232,2]
[324902494,1714404649154,-500.0,0.0001232,2]
[324902496,1714404649165,-500.0,0.0001232,2]
[324902498,1714404649175,-716.17,0.0001232,2]
[324902500,1714404649186,-500.0,0.0001232,2]
[324902502,1714404649195,-500.0,0.0001232,2]
[324902504,1714404649204,-1095.02,0.0001232,2]
[324902506,1714404649214,-839.56,0.0001232,2]
[324902508,1714404649224,-1523.03,0.0001232,2]
[324902510,1714404649233,-500.0,0.0001232,2]
[324902511,1714404649243,-500.0,0.0001232,2]
[324902514,1714404649254,-500.0,0.0001232,2]
[324902516,1714404649263,-500.0,0.0001232,2]
[324902517,1714404649273,-500.0,0.0001232,2]
[324902519,1714404649283,-736.77,0.0001232,2]
[324902522,1714404649292,-500.0,0.0001232,2]
[324902524,1714404649301,-1764.24,0.0001232,2]
[324902526,1714404649314,-781.46,0.0001232,2]
[324902528,1714404649326,-943.5,0.0001232,2]
[324902530,1714404649336,-500.0,0.0001232,2]
[324902532,1714404649345,-500.0,0.0001232,2]
[324902534,1714404649356,-643.81877413,0.0001232,2]
[324902536,1714404649365,-4435.9,0.0001232,2]
[324902538,1714404649374,-500.0,0.00012321,2]
[324902540,1714404649384,-500.0,0.00012321,2]
[324902542,1714404649396,-500.0,0.00012321,2]
[324902544,1714404649405,-500.0,0.00012321,2]
[324902546,1714404649415,-500.0,0.00012321,2]
[324902548,1714404649425,-500.0,0.00012321,2]
[324902550,1714404649434,-572.06038572,0.00012321,2]
[324902552,1714404649443,-500.0,0.00012321,2]
[324902554,1714404649453,-500.0,0.00012321,2]
[324902556,1714404649463,-500.0,0.00012321,2]
[324902558,1714404649472,-500.0,0.00012321,2]
[324902560,1714404649482,-500.0,0.00012321,2]
[324902562,1714404649492,-500.0,0.00012321,2]
[324902564,1714404649502,-500.0,0.00012321,2]
[324902566,1714404649511,-500.0,0.00012321,2]
[324902568,1714404649520,-500.0,0.00012321,2]
[324902570,1714404649530,-500.0,0.00012321,2]
[324902572,1714404649539,-500.0,0.00012321,2]
[324902574,1714404649548,-500.0,0.00012321,2]
[324902576,1714404649557,-500.0,0.00012321,2]
[324902578,1714404649567,-500.0,0.00012321,2]
[324902580,1714404649576,-500.0,0.00012321,2]
[324902582,1714404649585,-592.0,0.00012329,2]
[324902584,1714404649594,-788.66,0.00012526,2]
[324902586,1714404649605,-522.95,0.00012591,2]
[324902588,1714404649614,-500.0,0.00012591,2]
[324902590,1714404649623,-500.0,0.00012591,2]
[324902592,1714404649632,-500.0,0.00012591,2]
[324902594,1714404649642,-813.38,0.00012591,2]
[324902596,1714404649651,-500.0,0.00012591,2]
[324902598,1714404649660,-885.3,0.00012591,2]
[324902600,1714404649669,-831.53,0.00012591,2]
[324902602,1714404649679,-500.0,0.00012591,2]
[324902604,1714404649688,-647.73,0.00012591,2]
[324902606,1714404649698,-2566.98,0.00012591,2]
[324902608,1714404649707,-894.73,0.00012591,2]
[324902610,1714404649716,-1317.15,0.00012591,2]
[324902612,1714404649725,-500.0,0.00012591,2]
[324902614,1714404649735,-770.66,0.00012591,2]
[324902616,1714404649744,-1079.45,0.00012591,2]
[324902617,1714404649753,-854.8,0.00012591,2]
[324902619,1714404649763,-1340.14,0.00012591,2]
[324902622,1714404649772,-500.0,0.00012591,2]
[324902624,1714404649781,-912.92,0.00012591,2]
[324902625,1714404649791,-2244.32,0.00012591,2]
[324902628,1714404649801,-500.0,0.00012591,2]
[324902629,1714404649810,-500.0,0.00012591,2]
[324902631,1714404649820,-1386.59,0.00012591,2]
[324902634,1714404649829,-500.0,0.00012591,2]
[324902635,1714404649838,-500.0,0.00012591,2]
[324902638,1714404649848,-409.56392802,0.00012591,2]
[324902640,1714404649859,-976.76,0.00012591,2]
[324902642,1714404649868,-500.0,0.00012591,2]
[324902644,1714404649879,-500.0,0.00012591,2]
[324902646,1714404649889,-500.0,0.00012591,2]
[324902648,1714404649899,-500.0,0.00012591,2]
[324902650,1714404649909,-415.86,0.00012591,2]
[324902652,1714404649918,-622.36,0.00012591,2]
[324902654,1714404649927,-500.0,0.00012591,2]
[324902656,1714404649936,-500.0,0.00012592,2]
[324902658,1714404649946,-500.0,0.00012592,2]
[324902659,1714404649955,-500.0,0.00012592,2]
[324902661,1714404649965,-545.37,0.00012592,2]
[324902664,1714404649975,-500.0,0.00012592,2]
[324902666,1714404649985,-500.0,0.00012592,2]
[324902668,1714404649994,-569.83,0.00012592,2]
[324902670,1714404650004,-683.12,0.00012592,2]
[324902672,1714404650013,-684.91,0.00012592,2]
[324902674,1714404650022,-500.0,0.00012592,2]
[324902675,1714404650032,-500.0,0.00012592,2]
[324902678,1714404650044,-500.0,0.00012592,2]
[324902680,1714404650054,-500.0,0.00012592,2]
[324902682,1714404650063,-500.0,0.00012592,2]
[324902684,1714404650072,-998.08,0.00012592,2]
[324902685,1714404650082,-500.0,0.00012592,2]
[324902687,1714404650091,-287.66,0.00012592,2]
[324902689,1714404650102,-500.0,0.00012592,2]
[324902691,1714404650112,-500.0,0.00012592,2]
[324902693,1714404650122,-500.0,0.00012592,2]
[324902696,1714404650132,-500.0,0.00012592,2]
[324902697,1714404650143,-500.0,0.00012592,2]
[324902700,1714404650153,-500.0,0.00012592,2]
[324902702,1714404650163,-500.0,0.00012592,2]
[324902704,1714404650174,-500.0,0.00012592,2]
[324902706,1714404650183,-500.0,0.00012592,2]
[324902708,1714404650193,-500.0,0.00012592,2]
[324902710,1714404650202,-932.76,0.00012592,2]
[324902712,1714404650211,-971.46,0.00012592,2]
[324902714,1714404650220,-500.0,0.00012592,2]
[324902715,1714404650230,-500.0,0.00012592,2]
[324902718,1714404650242,-500.0,0.00012592,2]
[324902720,1714404650253,-6196.7,0.00012592,2]
[324902722,1714404650263,-500.0,0.00012592,2]
[324902724,1714404650273,-9102.51,0.00012592,2]
[324902726,1714404650282,-761.28,0.00012592,2]
[324902728,1714404650293,-167.96,0.00012592,2]
[324902730,1714404650302,-1145.45,0.00012592,2]
[324902732,1714404650317,-1068.88,0.00012592,2]
[324902734,1714404650327,-500.0,0.00012592,2]
[324902736,1714404650336,-873.27,0.00012592,2]
[324902738,1714404650346,-709.15,0.00012592,2]
[324902740,1714404650359,-500.0,0.00012592,2]
[324902742,1714404650369,-923.89,0.00012592,2]
[324902744,1714404650379,-539.19,0.00012592,2]
[324902746,1714404650390,-533.27,0.00012592,2]
[324902748,1714404650400,-741.16,0.00012592,2]
[324902750,1714404650410,-500.0,0.00012592,2]
[324902752,1714404650419,-500.0,0.00012592,2]
[324902754,1714404650429,-500.0,0.00012592,2]
[324902756,1714404650439,-500.0,0.00012592,2]
[324902758,1714404650448,-500.0,0.00012592,2]
[324902760,1714404650458,-500.0,0.00012592,2]
[324902762,1714404650468,-1406.34,0.00012592,2]
[324902764,1714404650478,-500.0,0.00012592,2]
[324902766,1714404650487,-558.29,0.00012592,2]
[324902768,1714404650497,-500.0,0.00012592,2]
[324902770,1714404650507,-500.0,0.00012592,2]
[324902772,1714404650517,-614.69,0.00012592,2]
[324902774,1714404650527,-500.0,0.00012592,2]
[324902776,1714404650537,-1554.77,0.00012592,2]
[324902778,1714404650546,-500.0,0.00012592,2]
[324902780,1714404650556,-1116.38,0.00012592,2]
[324902782,1714404650566,-500.0,0.00012592,2]
[324902784,1714404650576,-513.38,0.00012592,2]
[324902786,1714404650586,-500.0,0.00012592,2]
[324902788,1714404650595,-775.81,0.00012592,2]
[324902790,1714404650606,-775.97,0.00012592,2]
[324902792,1714404650615,-837.27,0.00012592,2]
[324902794,1714404650625,-814.78,0.00012592,2]
[324902796,1714404650635,-500.0,0.00012592,2]
[324902798,1714404650645,-780.98,0.00012592,2]
[324902800,1714404650655,-925.75,0.00012592,2]
[324902802,1714404650665,-500.0,0.00012592,2]
[324902804,1714404650675,-215.16776921,0.00012592,2]
[324902806,1714404650684,-500.0,0.00012592,2]
[324902808,1714404650694,-511.54,0.00012592,2]
[324902810,1714404650704,-500.0,0.00012592,2]
[324902812,1714404650713,-500.0,0.00012592,2]
[324902814,1714404650723,-838.55,0.00012592,2]
[324902816,1714404650732,-500.0,0.00012592,2]
[324902818,1714404650742,-500.0,0.00012592,2]
[324902820,1714404650751,-861.52,0.00012592,2]
[324902822,1714404650761,-500.0,0.00012592,2]
[324902824,1714404650770,-1520.28,0.00012592,2]
[324902826,1714404650780,-500.0,0.00012592,2]
[324902828,1714404650790,-830.54,0.00012592,2]
[324902830,1714404650799,-2272.72,0.00012592,2]
[324902832,1714404650809,-1090.06,0.00012592,2]
[324902834,1714404650819,-813.33,0.00012592,2]
[324902837,1714404650829,-500.0,0.00012592,2]
[324902839,1714404650840,-500.0,0.00012592,2]
[324902841,1714404650849,-861.86,0.00012592,2]
[324902842,1714404650859,-500.0,0.00012592,2]
[324902844,1714404650868,-500.0,0.00012592,2]
[324902846,1714404650878,-1025.76,0.00012592,2]
[324902848,1714404650888,-208.0,0.00012593,2]
[324902850,1714404650897,-437.0,0.00012593,2]
[324902852,1714404650906,-610.0,0.00012593,2]
[324902854,1714404650917,-1860.0,0.00012593,2]
[324902856,1714404650926,-808.0,0.00012593,2]
[324902858,1714404650936,-2446.0,0.00012593,2]
[324902860,1714404650946,-1474.0,0.00012593,2]
[324902863,1714404650957,-3130.0,0.00012593,2]
[324902865,1714404650968,-420.0,0.00012593,2]
[324902867,1714404650978,-1642.0,0.00012593,2]
[324902869,1714404650988,-150.0,0.00012593,2]
[324902871,1714404650999,-443.0,0.00012593,2]
[324902873,1714404651008,-215.0,0.00012593,2]
[324902875,1714404651017,-1138.0,0.00012593,2]
[324902877,1714404651026,-5735.0,0.00012593,2]
[324902879,1714404651035,-462.0,0.00012593,2]
[324902880,1714404651044,-2298.0,0.00012593,2]
[324902883,1714404651054,-970.0,0.00012593,2]
[324902885,1714404651063,-5898.0,0.00012593,2]
[324902886,1714404651072,-1395.0,0.00012593,2]
[324902888,1714404651081,-2291.0,0.00012593,2]
[324902890,1714404651090,-37732.0,0.00012593,2]
[324902892,1714404651098,-1228.0,0.00012593,2]
[324902894,1714404651108,-1257.0,0.00012593,2]
[324902897,1714404651118,-542.0,0.00012593,2]
[324902898,1714404651127,-500.0,0.00012593,2]
[324902901,1714404651136,-518.2,0.00012593,2]
[324902903,1714404651145,-500.0,0.00012593,2]
[324902905,1714404651155,-500.0,0.00012593,2]
[324902906,1714404651164,-610.66806531,0.00012593,2]
[324902908,1714404651173,-500.0,0.00012593,2]
[324902910,1714404651182,-500.0,0.00012593,2]
[324902912,1714404651192,-500.0,0.00012593,2]
[324902915,1714404651202,-500.0,0.00012593,2]
[324902916,1714404651211,-500.0,0.00012593,2]
[324902918,1714404651221,-500.0,0.00012593,2]
[324902920,1714404651230,-500.0,0.00012593,2]
[324902922,1714404651240,-500.0,0.00012593,2]
[324902925,1714404651250,-503.12,0.00012593,2]
[324902927,1714404651260,-500.0,0.00012593,2]
[324902929,1714404651269,-885.71,0.00012593,2]
[324902931,1714404651279,-500.0,0.00012593,2]
[324902933,1714404651288,-500.0,0.00012593,2]
[324902935,1714404651297,-547.43,0.00012593,2]
[324902937,1714404651307,-500.0,0.00012593,2]
[324902938,1714404651319,-500.0,0.00012593,2]
[324902941,1714404651328,-4468.47,0.00012593,2]
[324902943,1714404651339,-500.0,0.00012593,2]
[324902945,1714404651348,-500.0,0.00012593,2]
[324902947,1714404651359,-500.0,0.00012593,2]
[324902948,1714404651368,-827.83,0.00012593,2]
[324902949,1714404651378,-500.0,0.00012593,2]
[324902950,1714404651388,-500.0,0.00012593,2]
[324902951,1714404651399,-1035.87,0.00012593,2]
[324902952,1714404651409,-500.0,0.00012593,2]
[324902953,1714404651419,-500.0,0.00012593,2]
[324902954,1714404651428,-500.0,0.00012593,2]
[324902955,1714404651437,-500.0,0.00012593,2]
[324902956,1714404651447,-532.73,0.00012593,2]
[324902957,1714404651456,-233.39,0.00012593,2]
[324902958,1714404651466,-500.0,0.00012593,2]
[324902959,1714404651475,-500.0,0.00012593,2]
[324902960,1714404651485,-670.19,0.00012593,2]
[324902961,1714404651495,-500.0,0.00012593,2]
[324902962,1714404651505,-5481.21,0.00012593,2]
[324902963,1714404651515,-652.49,0.00012593,2]
[324902964,1714404651524,-1127.47,0.00012593,2]
[324902965,1714404651533,-500.0,0.00012593,2]
[324902966,1714404651543,-500.0,0.00012593,2]
[324902967,1714404651552,-500.0,0.00012593,2]
[324902968,1714404651560,-1300.21,0.00012593,2]
[324902969,1714404651570,-500.0,0.00012593,2]
[324902970,1714404651580,-693.21,0.00012593,2]
[324902971,1714404651589,-625.0,0.00012593,2]
[324902972,1714404651598,-1918.13,0.00012593,2]
[324902973,1714404651608,-500.0,0.00012593,2]
[324902974,1714404651617,-501.29,0.00012593,2]
[324902975,1714404651626,-500.0,0.00012593,2]
[324902976,1714404651635,-500.0,0.00012593,2]
[324902977,1714404651644,-500.0,0.00012593,2]
[324902978,1714404651653,-500.0,0.00012593,2]
[324902979,1714404651662,-1028.22,0.00012593,2]
[324902980,1714404651671,-500.0,0.00012594,2]
[324902981,1714404651681,-500.0,0.00012594,2]
[324902982,1714404651690,-500.0,0.00012594,2]
[324902983,1714404651699,-500.0,0.00012594,2]
[324902984,1714404651708,-500.0,0.00012594,2]
[324902985,1714404651718,-500.0,0.00012594,2]
[324902986,1714404651727,-182.94406487,0.00012594,2]
[324902987,1714404651736,-500.0,0.00012594,2]
[324902988,1714404651745,-500.0,0.00012594,2]
[324902989,1714404651754,-500.0,0.00012594,2]
[324902990,1714404651763,-641.68,0.00012594,2]
[324902991,1714404651772,-500.0,0.00012594,2]
[324902992,1714404651782,-500.0,0.00012594,2]
[324902993,1714404651792,-500.0,0.00012594,2]
[324902994,1714404651802,-500.0,0.00012594,2]
[324902996,1714404651811,-500.0,0.00012594,2]
[324902998,1714404651821,-500.0,0.00012594,2]
[324903000,1714404651830,-500.0,0.00012594,2]
[324903002,1714404651839,-610.35,0.00012594,2]
[324903004,1714404651849,-500.0,0.00012594,2]
[324903006,1714404651861,-500.0,0.00012594,2]
[324903008,1714404651870,-500.0,0.00012594,2]
[324903010,1714404651879,-500.0,0.00012594,2]
[324903012,1714404651888,-500.0,0.00012594,2]
[324903014,1714404651896,-500.0,0.00012594,2]
[324903016,1714404651906,-500.0,0.00012594,2]
[324903018,1714404651915,-500.0,0.00012594,2]
[324903020,1714404651924,-500.0,0.00012594,2]
[324903022,1714404651933,-500.0,0.00012594,2]
[324903024,1714404651943,-500.0,0.00012594,2]
[324903026,1714404651952,-500.0,0.00012594,2]
[324903028,1714404651962,-500.0,0.00012594,2]
[324903029,1714404651971,-500.0,0.00012594,2]
[324903030,1714404651980,-500.0,0.00012594,2]
[324903031,1714404651989,-751.68,0.00012594,2]
[324903032,1714404651998,-599.12,0.00012594,2]
[324903033,1714404652008,-518.25,0.00012594,2]
[324903034,1714404652017,-500.0,0.00012594,2]
[324903035,1714404652026,-443.22525759,0.00012594,2]
[324903036,1714404652036,-500.0,0.00012594,2]
[324903037,1714404652045,-500.0,0.00012594,2]
[324903038,1714404652054,-500.0,0.00012594,2]
[324903039,1714404652064,-500.0,0.00012594,2]
[324903040,1714404652073,-500.0,0.00012594,2]
[324903042,1714404652082,-851.58,0.00012594,2]
[324903044,1714404652092,-842.11,0.00012594,2]
[324903046,1714404652103,-641.79,0.00012594,2]
[324903048,1714404652112,-500.0,0.00012594,2]
[324903050,1714404652122,-235.8071716,0.00012594,2]
[324903052,1714404652131,-551.21,0.00012594,2]
[324903054,1714404652141,-452.20132701,0.00012594,2]
[324903056,1714404652150,-500.0,0.00012594,2]
[324903058,1714404652160,-500.0,0.00012594,2]
[324903060,1714404652170,-500.0,0.00012594,2]
[324903062,1714404652180,-191.62826448,0.00012594,2]
[324903109,1714404652639,-308.37173552,0.00012594,2]
[324903111,1714404652649,-500.0,0.00012594,2]
[324903113,1714404652660,-500.0,0.00012594,2]
[324903115,1714404652669,-896.1,0.00012594,2]
[324903117,1714404652678,-500.0,0.00012594,2]
[324903119,1714404652687,-500.0,0.00012594,2]
[324903121,1714404652696,-790.16,0.00012594,2]
[324903123,1714404652705,-526.35,0.00012594,2]
[324903125,1714404652715,-500.0,0.00012594,2]
[324903127,1714404652724,-500.0,0.00012594,2]
[324903129,1714404652733,-500.0,0.00012594,2]
[324903131,1714404652742,-500.0,0.00012594,2]
[324903133,1714404652751,-500.0,0.00012594,2]
[324903135,1714404652760,-500.0,0.00012594,2]
[324903137,1714404652770,-500.0,0.00012594,2]
[324903139,1714404652779,-500.0,0.00012594,2]
[324903141,1714404652788,-377.28,0.00012594,2]
[324903143,1714404652798,-500.0,0.00012594,2]
[324903145,1714404652808,-500.0,0.00012594,2]
[324903148,1714404652817,-500.0,0.00012594,2]
[324903149,1714404652827,-500.0,0.00012594,2]
[324903152,1714404652836,-500.0,0.00012594,2]
[324903154,1714404652846,-500.0,0.00012594,2]
[324903156,1714404652858,-762.17,0.00012594,2]
[324903157,1714404652867,-500.0,0.00012594,2]
[324903159,1714404652876,-500.0,0.00012594,2]
[324903161,1714404652885,-500.0,0.00012594,2]
[324903163,1714404652894,-613.15,0.00012594,2]
[324903165,1714404652903,-509.09,0.00012594,2]
[324903167,1714404652913,-500.0,0.00012594,2]
[324903169,1714404652922,-500.0,0.00012594,2]
[324903171,1714404652931,-500.0,0.00012594,2]
[324903174,1714404652940,-500.0,0.00012594,2]
[324903176,1714404652950,-500.0,0.00012594,2]
[324903177,1714404652958,-797.6,0.00012594,2]
[324903179,1714404652968,-558.91,0.00012594,2]
[324903182,1714404652978,-500.0,0.00012594,2]
[324903184,1714404652988,-741.42,0.00012594,2]
[324903185,1714404652998,-390.23,0.00012594,2]
[324903186,1714404653028,-557.76,0.00012594,2]
[324903188,1714404653038,-500.0,0.00012594,2]
[324903192,1714404653064,-500.0,0.00012594,2]
[324903194,1714404653074,-500.0,0.00012594,2]
[324903196,1714404653083,-661.59,0.00012594,2]
[324903198,1714404653093,-500.0,0.00012594,2]
[324903200,1714404653106,-500.0,0.00012594,2]
[324903202,1714404653115,-500.0,0.00012594,2]
[324903204,1714404653125,-1052.52,0.00012594,2]
[324903206,1714404653134,-964.69,0.00012594,2]
[324903208,1714404653144,-500.0,0.00012594,2]
[324903210,1714404653153,-500.0,0.00012594,2]
[324903212,1714404653163,-500.0,0.00012594,2]
[324903214,1714404653172,-500.0,0.00012594,2]
[324903216,1714404653181,-617.27,0.00012594,2]
[324903218,1714404653191,-671.31,0.00012594,2]
[324903220,1714404653201,-500.0,0.00012594,2]
[324903222,1714404653210,-1555.37,0.00012594,2]
[324903224,1714404653220,-529.29,0.00012594,2]
[324903227,1714404653229,-500.0,0.00012594,2]
[324903229,1714404653239,-500.0,0.00012594,2]
[324903230,1714404653249,-612.31,0.00012594,2]
[324903232,1714404653257,-800.38,0.00012594,2]
[324903234,1714404653267,-500.0,0.00012594,2]
[324903236,1714404653276,-967.79,0.00012594,2]
[324903238,1714404653285,-500.0,0.00012594,2]
[324903240,1714404653294,-500.0,0.00012594,2]
[324903242,1714404653304,-500.0,0.00012594,2]
[324903244,1714404653314,-747.29,0.00012594,2]
[324903246,1714404653325,-500.0,0.00012594,2]
[324903248,1714404653334,-500.0,0.00012594,2]
[324903251,1714404653344,-500.0,0.00012594,2]
[324903253,1714404653356,-500.0,0.00012594,2]
[324903254,1714404653365,-1176.39,0.00012594,2]
[324903257,1714404653375,-1328.31,0.00012594,2]
[324903258,1714404653384,-500.0,0.00012594,2]
[324903260,1714404653394,-639.29,0.00012594,2]
[324903262,1714404653402,-500.0,0.00012594,2]
[324903264,1714404653411,-500.0,0.00012594,2]
[324903266,1714404653421,-500.0,0.00012594,2]
[324903268,1714404653430,-1146.78,0.00012594,2]
[324903270,1714404653440,-500.0,0.00012594,2]
[324903272,1714404653449,-500.0,0.00012594,2]
[324903274,1714404653458,-500.0,0.00012594,2]
[324903276,1714404653468,-649.31,0.00012594,2]
[324903278,1714404653477,-875.81,0.00012594,2]
[324903280,1714404653488,-905.57,0.00012594,2]
[324903282,1714404653497,-500.0,0.00012594,2]
[324903284,1714404653506,-500.0,0.00012594,2]
[324903286,1714404653515,-500.0,0.00012594,2]
[324903288,1714404653524,-716.17,0.00012594,2]
[324903290,1714404653534,-500.0,0.00012594,2]
[324903292,1714404653544,-500.0,0.00012594,2]
[324903294,1714404653553,-1095.02,0.00012594,2]
[324903296,1714404653562,-839.56,0.00012594,2]
[324903298,1714404653571,-1523.03,0.00012594,2]
[324903300,1714404653581,-500.0,0.00012594,2]
[324903302,1714404653590,-500.0,0.00012594,2]
[324903304,1714404653600,-500.0,0.00012594,2]
[324903307,1714404653611,-500.0,0.00012594,2]
[324903309,1714404653620,-243.04736024,0.00012594,2]
[324903311,1714404653629,-736.77,0.00012594,2]
[324903312,1714404653638,-500.0,0.00012594,2]
[324903314,1714404653647,-1764.24,0.00012594,2]
[324903316,1714404653656,-781.46,0.00012594,2]
[324903319,1714404653665,-943.5,0.00012594,2]
[324903320,1714404653674,-500.0,0.00012594,2]
[324903323,1714404653684,-500.0,0.00012594,2]
[324903325,1714404653693,-4435.9,0.00012594,2]
[324903327,1714404653702,-500.0,0.00012595,2]
[324903328,1714404653712,-500.0,0.00012595,2]
[324903331,1714404653721,-500.0,0.00012595,2]
[324903332,1714404653731,-500.0,0.00012595,2]
[324903334,1714404653740,-500.0,0.00012595,2]
[324903336,1714404653749,-500.0,0.00012595,2]
[324903338,1714404653759,-500.0,0.00012595,2]
[324903340,1714404653768,-500.0,0.00012595,2]
[324903342,1714404653778,-500.0,0.00012595,2]
[324903344,1714404653787,-189.68314754,0.00012595,2]
[324903346,1714404653797,-445.31989966,0.00012595,2]
[324903348,1714404653806,-500.0,0.00012595,2]
[324903350,1714404653815,-500.0,0.00012595,2]
[324903352,1714404653824,-500.0,0.00012595,2]
[324903354,1714404653834,-500.0,0.00012595,2]
[324903356,1714404653843,-500.0,0.00012595,2]
[324903358,1714404653853,-500.0,0.00012595,2]
[324903360,1714404653863,-500.0,0.00012595,2]
[324903362,1714404653873,-500.0,0.00012595,2]
[324903364,1714404653882,-500.0,0.00012595,2]
[324903366,1714404653891,-404.8762609,0.00012667,2]
[324903368,1714404653901,-1064.24123917,0.00012667,2]
[324903370,1714404653910,-325.81505107,0.00012668,2]
[324903372,1714404653919,-339.20676129,0.00012697,2]
[324903374,1714404653928,-408.57453561,0.00012697,2]
[324903376,1714404653937,-155.08750034,0.00012697,2]
[324903378,1714404653947,-1000.0,0.000127,2]
[324903380,1714404653956,-300.0,0.0001273,2]
[324903382,1714404653966,-1097.04545258,0.0001274,2]
[324903384,1714404653975,-300.0,0.00012792,2]
[324903386,1714404653984,-300.0,0.00012795,2]
[324903388,1714404653994,-300.0,0.00012798,2]
[324903390,1714404654003,-1656.0,0.000128,2]
[324903392,1714404654013,-300.0,0.00012816,2]
[324903394,1714404654022,-300.0,0.00012822,2]
[324903396,1714404654031,-154.8980315,0.00012834,2]
[324903398,1714404654040,-300.0,0.00012844,2]
[324903400,1714404654049,-300.0,0.00012863,2]
[324903402,1714404654058,-522.95,0.00012865,2]
[324903404,1714404654068,-500.0,0.00012865,2]
[324903406,1714404654077,-500.0,0.00012865,2]
[324903408,1714404654086,-813.38,0.00012865,2]
[324903410,1714404654096,-621.67331174,0.00012865,2]
[324903412,1714404654109,-885.3,0.00012865,2]